lending/lending_fUSD_20260328
["ID","MTS","AMOUNT","RATE_DAILY","PERIOD"]
[418979291,1774705845016,-1300.0,0.00021101,2]
[418979292,1774705845025,-8100.0,0.00021101,2]
[418979293,1774705845035,-500.0,0.00021101,2]
[418979294,1774705845045,-900.0,0.00021101,2]
[418979295,1774705845054,-1300.0,0.00021101,2]
[418979296,1774705845063,-8100.0,0.00021101,2]
[418979297,1774705845074,-887.34261108,0.00021101,2]
[418979298,1774705845083,-1517.8036691,0.00021101,2]
[418979299,1774705845092,-1300.0,0.00021101,2]
[418979300,1774705845102,-500.0,0.00021101,2]
[418979301,1774705845111,-8100.0,0.00021101,2]
[418979302,1774705845120,-1300.0,0.00021101,2]
[418979303,1774705845130,-500.0,0.00021101,2]
[418979304,1774705845139,-13366.9011729,0.00021101,2]
[418979305,1774705845148,-500.0,0.00021101,2]
[418979306,1774705845158,-1300.0,0.00021101,2]
[418979307,1774705845167,-1300.0,0.00021101,2]
[418979308,1774705845177,-500.0,0.00021101,2]
[418979309,1774705845186,-1300.0,0.00021101,2]
[418979310,1774705845196,-500.0,0.00021101,2]
[418979311,1774705845206,-1300.0,0.00021101,2]
[418979312,1774705845216,-500.0,0.00021101,2]
[418979313,1774705845227,-1300.0,0.00021101,2]
[418979314,1774705845237,-500.0,0.00021101,2]
[418979315,1774705845246,-1300.0,0.00021101,2]
[418979316,1774705845256,-500.0,0.00021101,2]
[418979317,1774705845265,-2474.76110819,0.00021101,2]
[418979318,1774705845276,-500.0,0.00021101,2]
[418979319,1774705845285,-500.0,0.00021101,2]
[418979320,1774705845295,-500.0,0.00021101,2]
[418979321,1774705845304,-500.0,0.00021101,2]
[418979322,1774705845313,-987.15605615,0.00021101,2]
[418979323,1774705845322,-500.0,0.00021101,2]
[418979324,1774705845332,-500.0,0.00021101,2]
[418979325,1774705845341,-500.0,0.00021101,2]
[418979326,1774705845350,-500.0,0.00021101,2]
[418979327,1774705845359,-500.0,0.00021101,2]
[418979328,1774705845368,-776.11335293,0.00021101,2]
[418979329,1774705845378,-1339.6,0.00021341,2]
[418979330,1774705845387,-2000.0,0.00021347,2]
[418979331,1774705845399,-2000.0,0.00021347,2]
[418979332,1774705845409,-2000.0,0.00021347,2]
[418979333,1774705845419,-2000.0,0.00021347,2]
[418979334,1774705845429,-2000.0,0.00021347,2]
[418979335,1774705845438,-2000.0,0.00021347,2]
[418979336,1774705845448,-2000.0,0.00021347,2]
[418979337,1774705845457,-2000.0,0.00021347,2]
[418979338,1774705845466,-2000.0,0.00021347,2]
[418979339,1774705845475,-2000.0,0.00021347,2]
[418979340,1774705845484,-6428.26,0.0002137,2]
[418979341,1774705845494,-550.0,0.0002137,2]
[418979342,1774705845504,-150.0,0.0002137,2]
[418979343,1774705845513,-550.0,0.0002137,2]
[418979344,1774705845522,-636.06,0.00021391,2]
[418979345,1774705845531,-697990.5889834,0.0002143,2]
[418979346,1774705845540,-27435.9062586,0.00021453,2]
[418979347,1774705845550,-57972.36183467,0.000215,2]
[418979348,1774705845559,-223.75158866,0.000215,2]
[418979349,1774705845569,-3540.9,0.000215,2]
[418979350,1774705845579,-2355.62,0.000215,2]
[418979351,1774705845588,-250.0,0.00021514,2]
[418979352,1774705845598,-2000.0,0.00021643,2]
[418979353,1774705845608,-2000.0,0.00021643,2]
[418979354,1774705845617,-2000.0,0.00021643,2]
[418979355,1774705845626,-2000.0,0.00021643,2]
[418979356,1774705845636,-2000.0,0.00021643,2]
[418979357,1774705845646,-2000.0,0.00021643,2]
[418979358,1774705845656,-2000.0,0.00021643,2]
[418979359,1774705845665,-2000.0,0.00021643,2]
[418979360,1774705845675,-2000.0,0.00021643,2]
[418979361,1774705845684,-2000.0,0.00021643,2]
[418979362,1774705845694,-3620.0,0.00021672,2]
[418979363,1774705845703,-151.02044316,0.000219,2]
[418979364,1774705845712,-3057.72,0.00021918,2]
[418979365,1774705845721,-5000.0,0.00021918,2]
[418979366,1774705845731,-1108.0,0.00021918,2]
[418979367,1774705845740,-650.0,0.00021918,2]
[418979368,1774705845750,-172.30950211,0.00021918,2]
[418979369,1774705845760,-650.0,0.00021918,2]
[418979370,1774705845769,-150.0,0.00021918,2]
[418979371,1774705845780,-168.08464442,0.00021937,14]
[418979372,1774705845789,-500.0,0.00021973,2]
[418979373,1774705845799,-806.40070295,0.00022,7]
[418979374,1774705845809,-151.0,0.00022,2]
[418979375,1774705845818,-500.0,0.00022,2]
[418979376,1774705845828,-2500.0,0.00022,2]
[418979377,1774705845837,-500.0,0.00022,2]
[418979378,1774705845847,-226.93397749,0.00022,2]
[418979379,1774705845856,-658.42439949,0.00022,2]
[418979380,1774705845865,-2500.0,0.00022,2]
[418979381,1774705845874,-1000.0,0.00022,2]
[418979382,1774705845884,-500.0,0.00022,2]
[418979383,1774705845893,-1300.0,0.00022,2]
[418979384,1774705845903,-500.0,0.00022,2]
[418979385,1774705845912,-500.0,0.00022,2]
[418979386,1774705845921,-1300.0,0.00022,2]
[418979387,1774705845930,-2500.0,0.00022,2]
[418979388,1774705845939,-1000.0,0.00022,2]
[418979389,1774705845951,-500.0,0.00022,2]
[418979390,1774705845960,-500.0,0.00022,2]
[418979391,1774705845969,-500.0,0.00022,2]
[418979392,1774705845979,-1300.0,0.00022,2]
[418979393,1774705845988,-2500.0,0.00022,2]
[418979394,1774705845997,-1000.0,0.00022,2]
[418979395,1774705846006,-500.0,0.00022,2]
[418979396,1774705846014,-500.0,0.00022,2]
[418979397,1774705846024,-1300.0,0.00022,2]
[418979399,1774705846032,-500.0,0.00022,2]
[418979400,1774705846044,-1000.0,0.00022,2]
[418979401,1774705846053,-2500.0,0.00022,2]
[418979402,1774705846065,-500.0,0.00022,2]
[418979403,1774705846076,-500.0,0.00022,2]
[418979404,1774705846086,-1000.0,0.00022,2]
[418979405,1774705846096,-1300.0,0.00022,2]
[418979406,1774705846106,-2500.0,0.00022,2]
[418979407,1774705846115,-500.0,0.00022,2]
[418979408,1774705846126,-1300.0,0.00022,2]
[418979409,1774705846137,-1000.0,0.00022,2]
[418979410,1774705846146,-2500.0,0.00022,2]
[418979411,1774705846155,-1000.0,0.00022,2]
[418979412,1774705846164,-1300.0,0.00022,2]
[418979413,1774705846175,-2500.0,0.00022,2]
[418979414,1774705846185,-500.0,0.00022,2]
[418979415,1774705846194,-1000.0,0.00022,2]
[418979416,1774705846204,-500.7,0.00022,2]
[418979417,1774705846214,-2500.0,0.00022,2]
[418979418,1774705846223,-1000.0,0.00022,2]
[418979419,1774705846232,-2500.0,0.00022,2]
[418979420,1774705846242,-1300.0,0.00022,2]
[418979421,1774705846251,-1000.0,0.00022,2]
[418979422,1774705846261,-1300.0,0.00022,2]
[418979423,1774705846271,-500.0,0.00022,2]
[418979424,1774705846280,-1300.0,0.00022,2]
[418979425,1774705846290,-2500.0,0.00022,2]
[418979426,1774705846300,-1000.0,0.00022,2]
[418979427,1774705846309,-1300.0,0.00022,2]
[418979428,1774705846319,-1300.0,0.00022,2]
[418979429,1774705846329,-1000.0,0.00022,2]
[418979430,1774705846338,-900.0,0.00022,2]
[418979431,1774705846348,-1300.0,0.00022,2]
[418979432,1774705846358,-1000.0,0.00022,2]
[418979433,1774705846368,-1300.0,0.00022,2]
[418979434,1774705846378,-1300.0,0.00022,2]
[418979435,1774705846388,-900.0,0.00022,2]
[418979436,1774705846397,-8100.0,0.00022,2]
[418979437,1774705846407,-1000.0,0.00022,2]
[418979438,1774705846418,-1300.0,0.00022,2]
[418979439,1774705846428,-900.0,0.00022,2]
[418979440,1774705846438,-500.0,0.00022,2]
[418979441,1774705846449,-1300.0,0.00022,2]
[418979442,1774705846459,-8100.0,0.00022,2]
[418979443,1774705846469,-500.0,0.00022,2]
[418979444,1774705846478,-1000.0,0.00022,2]
[418979445,1774705846488,-1300.0,0.00022,2]
[418979446,1774705846498,-900.0,0.00022,2]
[418979447,1774705846508,-8100.0,0.00022,2]
[418979448,1774705846518,-1300.0,0.00022,2]
[418979449,1774705846528,-500.0,0.00022,2]
[418979450,1774705846537,-1300.0,0.00022,2]
[418979451,1774705846547,-900.0,0.00022,2]
[418979452,1774705846557,-500.0,0.00022,2]
[418979453,1774705846567,-1300.0,0.00022,2]
[418979454,1774705846576,-8100.0,0.00022,2]
[418979455,1774705846687,-500.0,0.00022,2]
[418979456,1774705846698,-358.71075406,0.00022,2]
[418979457,1774705846708,-500.0,0.00022,2]
[418979458,1774705846718,-500.0,0.00022,2]
[418979459,1774705846728,-900.0,0.00022,2]
[418979460,1774705846737,-925.4134589,0.00022,2]
[418979461,1774705846747,-8100.0,0.00022,2]
[418979462,1774705846756,-1300.0,0.00022,2]
[418979463,1774705846766,-751.11073656,0.00022,2]
[418979464,1774705846775,-500.0,0.00022,2]
[418979465,1774705846784,-1300.0,0.00022,2]
[418979466,1774705846794,-900.0,0.00022,2]
[418979467,1774705846804,-500.0,0.00022,2]
[418979468,1774705846813,-500.0,0.00022,2]
[418979469,1774705846823,-8100.0,0.00022,2]
[418979470,1774705846832,-2500.0,0.00022,2]
[418979471,1774705846842,-1300.0,0.00022,2]
[418979472,1774705846851,-500.0,0.00022,2]
[418979473,1774705846861,-1300.0,0.00022,2]
[418979474,1774705846871,-8100.0,0.00022,2]
[418979475,1774705846880,-500.0,0.00022,2]
[418979476,1774705846890,-900.0,0.00022,2]
[418979477,1774705846900,-1300.0,0.00022,2]
[418979478,1774705846910,-2500.0,0.00022,2]
[418979480,1774705846920,-500.0,0.00022,2]
[418979481,1774705846929,-607.23173059,0.00022,2]
[418979482,1774705846938,-1300.0,0.00022,2]
[418979483,1774705846948,-500.0,0.00022,2]
[418979484,1774705846958,-8100.0,0.00022,2]
[418979485,1774705846967,-900.0,0.00022,2]
[418979486,1774705846976,-2500.0,0.00022,2]
[418979487,1774705846986,-500.0,0.00022,2]
[418979488,1774705846997,-1300.0,0.00022,2]
[418979489,1774705847008,-1300.0,0.00022,2]
[418979490,1774705847020,-500.0,0.00022,2]
[418979491,1774705847030,-8100.0,0.00022,2]
[418979492,1774705847040,-900.0,0.00022,2]
[418979493,1774705847050,-2500.0,0.00022,2]
[418979494,1774705847060,-500.0,0.00022,2]
[418979495,1774705847070,-1300.0,0.00022,2]
[418979496,1774705847080,-1300.0,0.00022,2]
[418979497,1774705847089,-500.0,0.00022,2]
[418979498,1774705847099,-8100.0,0.00022,2]
[418979499,1774705847108,-900.0,0.00022,2]
[418979500,1774705847118,-500.0,0.00022,2]
[418979501,1774705847127,-1300.0,0.00022,2]
[418979502,1774705847137,-500.0,0.00022,2]
[418979503,1774705847147,-8100.0,0.00022,2]
[418979504,1774705847157,-900.0,0.00022,2]
[418979505,1774705847167,-1300.0,0.00022,2]
[418979506,1774705847177,-500.0,0.00022,2]
[418979507,1774705847187,-500.0,0.00022,2]
[418979508,1774705847197,-8100.0,0.00022,2]
[418979509,1774705847207,-900.0,0.00022,2]
[418979511,1774705847217,-500.0,0.00022,2]
[418979513,1774705847226,-1300.0,0.00022,2]
[418979515,1774705847235,-500.0,0.00022,2]
[418979517,1774705847245,-8100.0,0.00022,2]
[418979519,1774705847255,-500.0,0.00022,2]
[418979521,1774705847265,-900.0,0.00022,2]
[418979523,1774705847275,-1300.0,0.00022,2]
[418979525,1774705847284,-500.0,0.00022,2]
[418979527,1774705847294,-500.0,0.00022,2]
[418979529,1774705847303,-500.0,0.00022,2]
[418979531,1774705847313,-8100.0,0.00022,2]
[418979533,1774705847322,-500.0,0.00022,2]
[418979536,1774705847331,-1300.0,0.00022,2]
[418979539,1774705847341,-500.0,0.00022,2]
[418979541,1774705847350,-8100.0,0.00022,2]
[418979543,1774705847360,-500.0,0.00022,2]
[418979545,1774705847369,-1300.0,0.00022,2]
[418979547,1774705847378,-500.0,0.00022,2]
[418979548,1774705847387,-500.0,0.00022,2]
[418979551,1774705847397,-1300.0,0.00022,2]
[418979553,1774705847407,-346.07913606,0.00022,2]
[418979555,1774705847416,-500.0,0.00022,2]
[418979557,1774705847426,-500.0,0.00022,2]
[418979559,1774705847436,-1300.0,0.00022,2]
[418979561,1774705847446,-500.0,0.00022,2]
[418979563,1774705847457,-500.0,0.00022,2]
[418979565,1774705847467,-1300.0,0.00022,2]
[418979567,1774705847477,-500.0,0.00022,2]
[418979569,1774705847487,-1300.0,0.00022,2]
[418979571,1774705847496,-1300.0,0.00022,2]
[418979573,1774705847506,-500.0,0.00022,2]
[418979575,1774705847516,-500.0,0.00022,2]
[418979577,1774705847525,-1300.0,0.00022,2]
[418979579,1774705847536,-500.0,0.00022,2]
[418979581,1774705847545,-500.0,0.00022,2]
[418979583,1774705847555,-500.0,0.00022,2]
[418979585,1774705847565,-500.0,0.00022,2]
[418979587,1774705847575,-500.0,0.00022,2]
[418979589,1774705847584,-500.7,0.00022,2]
[418979591,1774705847594,-500.0,0.00022,2]
[418979593,1774705847603,-500.0,0.00022,2]
[418979595,1774705847612,-500.0,0.00022,2]
[418979597,1774705847622,-500.0,0.00022,2]
[418979599,1774705847631,-500.0,0.00022,2]
[418979601,1774705847640,-500.0,0.00022,2]
[418979603,1774705847649,-500.0,0.00022,2]
[418979605,1774705847658,-156.50311329,0.00022,2]
[418979607,1774705847668,-131479.61362356,0.00022,4]
[418979610,1774705847688,-1435.87614288,0.00022,4]
[418979612,1774705847700,-606.6000014,0.00022,4]
[418979614,1774705847711,-1843.3999986,0.00022,4]
[418979624,1774705847788,-197.2078,0.00015,2]
[418979626,1774705847797,-393.51575662,0.00022,4]
[418979628,1774705847809,-6214.9429633,0.00022,4]
[418979632,1774705847835,-427.78736739,0.00022,4]
[418979634,1774705847846,-398.23705892,0.00022,4]
[418979661,1774705848093,-259.2728,0.000163,2]
[418979663,1774705848103,-186.04425998,0.000175,2]
[418979666,1774705848124,-154.82654002,0.000175,2]
[418979668,1774705848134,-448.1493,0.000187,2]
[418979670,1774705848144,-24889.16702847,0.00018811,2]
[418979673,1774705848162,-1153.567646,0.00018811,2]
[418979751,1774705848910,-500.12556099,0.00013684,2]
[418979753,1774705848921,-500.12779556,0.00013684,2]
[418979755,1774705848930,-500.0,0.00013684,2]
[418979757,1774705848940,-500.0,0.00013684,2]
[418979759,1774705848951,-500.0,0.00013684,2]
[418979761,1774705848960,-500.82839147,0.00013684,2]
[418979762,1774705848970,-180.37464699,0.00013684,2]
[418979763,1774705848980,-500.0,0.00013684,2]
[418979764,1774705848989,-615.29449353,0.00013684,2]
[418979765,1774705849005,-117.69398196,0.00013684,2]
[418979766,1774705849014,-500.0,0.00013684,2]
[418979767,1774705849025,-500.0,0.00013684,2]
[418979768,1774705849035,-153.53246369,0.00013684,2]
[418979769,1774705849045,-332.43025267,0.00013684,2]
[418979770,1774705849055,-732.98847549,0.00013684,2]
[418979771,1774705849064,-500.0,0.00013684,2]
[418979772,1774705849074,-500.0,0.00013684,2]
[418979773,1774705849083,-371.64542268,0.00013684,2]
[418979774,1774705849093,-732.98847549,0.00013684,2]
[418979775,1774705849103,-500.0,0.00013684,2]
[418979776,1774705849113,-290.10806322,0.00013684,2]
[418979777,1774705849122,-732.98847549,0.00013684,2]
[418979778,1774705849132,-500.0,0.00013684,2]
[418979779,1774705849142,-732.98847549,0.00013684,2]
[418979780,1774705849152,-732.98847549,0.00013684,2]
[418979781,1774705849162,-500.0,0.00013684,2]
[418979782,1774705849171,-732.98847549,0.00013684,2]
[418979783,1774705849181,-732.98847549,0.00013684,2]
[418979784,1774705849191,-500.0,0.00013684,2]
[418979785,1774705849202,-732.98847549,0.00013684,2]
[418979786,1774705849212,-732.98847549,0.00013684,2]
[418979787,1774705849223,-732.98847549,0.00013684,2]
[418979788,1774705849232,-732.98847549,0.00013684,2]
[418979789,1774705849242,-732.98847549,0.00013684,2]
[418979790,1774705849251,-732.98847549,0.00013684,2]
[418979791,1774705849261,-732.98847549,0.00013684,2]
[418979792,1774705849271,-732.98847549,0.00013684,2]
[418979793,1774705849281,-732.98847549,0.00013684,2]
[418979794,1774705849291,-732.98847549,0.00013684,2]
[418979795,1774705849301,-732.98847549,0.00013684,2]
[418979796,1774705849311,-732.98847549,0.00013684,2]
[418979797,1774705849321,-732.98847549,0.00013684,2]
[418979798,1774705849331,-732.98847549,0.00013684,2]
[418979799,1774705849342,-732.98847549,0.00013684,2]
[418979800,1774705849352,-732.98847549,0.00013684,2]
[418979801,1774705849362,-732.98847549,0.00013684,2]
[418979802,1774705849372,-732.98847549,0.00013684,2]
[418979803,1774705849382,-732.98847549,0.00013684,2]
[418979804,1774705849393,-112.34413238,0.00013684,2]
[418979805,1774705849424,-620.64434311,0.00013684,2]
[418979806,1774705849434,-732.98847549,0.00013684,2]
[418979807,1774705849445,-732.98847549,0.00013684,2]
[418979808,1774705849455,-732.98847549,0.00013684,2]
[418979809,1774705849465,-732.98847549,0.00013684,2]
[418979810,1774705849474,-732.98847549,0.00013684,2]
[418979811,1774705849484,-732.98847549,0.00013684,2]
[418979812,1774705849494,-732.98847549,0.00013684,2]
[418979813,1774705849504,-678.22297933,0.00013684,2]
[418979814,1774705849522,-54.76549616,0.00013684,2]
[418979815,1774705849531,-732.98847549,0.00013684,2]
[418979816,1774705849541,-732.98847549,0.00013684,2]
[418979817,1774705849551,-732.98847549,0.00013684,2]
[418979818,1774705849561,-732.98847549,0.00013684,2]
[418979819,1774705849570,-463.79614623,0.00013684,2]
[418979820,1774705849582,-269.19232926,0.00013684,2]
[418979821,1774705849591,-732.98847549,0.00013684,2]
[418979822,1774705849601,-732.98847549,0.00013684,2]
[418979823,1774705849611,-732.98847549,0.00013684,2]
[418979824,1774705849621,-36.54224438,0.00013684,2]
[418979825,1774705849638,-611.58831939,0.00013684,2]
[418979826,1774705849649,-84.85791172,0.00013684,2]
[418979827,1774705849659,-408.87358739,0.00013684,2]
[418979828,1774705908756,235.5051,0.00012957,2]
[418979829,1774705930379,513.97,0.00012854,2]
[418979830,1774705960703,164.34,0.00010101,2]
[418979831,1774705993385,380.73,0.00012498,2]
[418979832,1774706013760,250.0,0.00013,2]
[418979833,1774706127355,8690.97,0.0001286,2]
[418979834,1774706127381,1404.87,0.0001286,2]
[418979836,1774706253613,1600.0,0.00012696,2]
[418979838,1774706372755,10000.01,0.00012627,2]
[418979839,1774706372777,109.59,0.00012627,2]
[418979840,1774706408028,3613.82207,7.945e-05,2]
[418979841,1774706467900,3900.0,0.000125,4]
[418979842,1774706469993,2486.18793,0.000126,4]
[418979843,1774706470020,5313.81207,0.000126,4]
[418979844,1774706472066,4686.19793,0.000127,4]
[418979845,1774706472093,7113.80207,0.000127,4]
[418979846,1774706474146,2886.20793,0.000128,4]
[418979847,1774706474171,10000.01,0.000128,4]
[418979848,1774706474195,2813.78207,0.000128,4]
[418979849,1774706476232,7186.22793,0.000129,4]
[418979850,1774706476257,10000.01,0.000129,4]
[418979851,1774706492474,-2413.76207,0.000129,4]
[418979852,1774706503354,5172.48586,0.00013,2]
[418979853,1774706503377,3251.91414,0.00013,2]
[418979854,1774706599365,156.39595107,0.00012936,2]
[418979855,1774706611035,2000.0,0.00012392,2]
[418979856,1774706639436,1500.0,0.00012392,2]
[418979857,1774706680977,3091.69990893,0.00012395,2]
[418979858,1774706681001,1175.55009107,0.00012395,2]
[418979859,1774706725592,1300.0,0.00011936,2]
[418979860,1774706790101,500.0,0.00011137,2]
[418979861,1774706796417,185.34,0.00012412,2]
[418979862,1774706814002,150.0,0.00012242,2]
[418979863,1774706837183,1000.0,0.000125,4]
[418979864,1774706839253,2100.0,0.000126,4]
[418979865,1774706841341,3200.0,0.000127,4]
[418979866,1774706843408,3550.01,0.000128,4]
[418979867,1774706843440,749.99,0.000128,4]
[418979868,1774706845565,5400.0,0.000129,4]
[418979869,1774706853903,620.0,0.00011106,2]
[418979870,1774706854451,600.0,0.0001143,2]
[418979871,1774706854968,920.0,0.00011741,2]
[418979872,1774706855512,670.0,0.00012144,2]
[418979873,1774706856947,780.0,0.00012311,2]
[418979874,1774706857669,260.02,8e-05,2]
[418979875,1774706857692,8453.34503267,8e-05,2]
[418979876,1774706858370,800.0,0.00012641,2]
[418979877,1774706858883,746.66496733,0.00012831,2]
[418979878,1774706858907,63.33503267,0.00012831,2]
[418979882,1774706921444,660.56,0.00012,2]
[418979888,1774706983102,213.36,0.00011713,2]
[418979889,1774707011060,9062.75496733,9.5e-05,3]
[418979890,1774707011085,10000.01,9.5e-05,3]
[418979891,1774707011110,10000.01,9.5e-05,3]
[418979892,1774707011134,10000.01,9.5e-05,3]
[418979893,1774707011157,10000.01,9.5e-05,3]
[418979894,1774707011182,10000.01,9.5e-05,3]
[418979895,1774707011206,10000.01,9.5e-05,3]
[418979896,1774707011231,10000.01,9.5e-05,3]
[418979897,1774707011259,10000.01,9.5e-05,3]
[418979898,1774707011284,10000.01,9.5e-05,3]
[418979899,1774707011311,1135.28168561,9.5e-05,3]
[418979900,1774707011336,1135.28168561,9.5e-05,3]
[418979901,1774707011362,1135.28168561,9.5e-05,3]
[418979902,1774707011385,1135.28168561,9.5e-05,3]
[418979903,1774707011411,1135.28168561,9.5e-05,3]
[418979904,1774707011434,1135.28168561,9.5e-05,3]
[418979905,1774707011458,1135.28168561,9.5e-05,3]
[418979906,1774707011483,1135.28168561,9.5e-05,3]
[418979907,1774707011508,1135.28168561,9.5e-05,3]
[418979908,1774707011532,1135.28168561,9.5e-05,3]
[418979909,1774707026815,781.91,6.033e-05,2]
[418979910,1774707027025,781.91,6.351e-05,2]
[418979911,1774707027207,781.91,6.668e-05,2]
[418979912,1774707027303,-2715.46243357,9.5e-05,3]
[418979913,1774707027363,-10000.01,9.5e-05,3]
[418979916,1774707027553,781.91,6.986e-05,2]
[418979917,1774707027589,-10000.01,9.5e-05,3]
[418979918,1774707027621,781.91,7.303e-05,2]
[418979919,1774707027651,-10000.01,9.5e-05,3]
[418979920,1774707027763,-10000.01,9.5e-05,3]
[418979921,1774707027804,781.91,7.621e-05,2]
[418979922,1774707028006,308.55,7.939e-05,2]
[418979923,1774707028030,473.36,7.939e-05,2]
[418979924,1774707028194,781.91,8.256e-05,2]
[418979925,1774707028407,781.91,8.574e-05,2]
[418979926,1774707028616,781.91,8.891e-05,2]
[418979927,1774707028823,781.91,9.209e-05,2]
[418979928,1774707030071,-10000.01,9.5e-05,3]
[418979929,1774707030279,-10000.01,9.5e-05,3]
[418979930,1774707030373,-10000.01,9.5e-05,3]
[418979931,1774707030483,-10000.01,9.5e-05,3]
[418979932,1774707030575,-10000.01,9.5e-05,3]
[418979944,1774707031430,-1363.17503185,9.5e-05,3]
[418979945,1774707031679,-73182.16940323,9.5e-05,3]
[418979946,1774707031688,-781.91,9.526e-05,2]
[418979947,1774707031698,-781.91,9.844e-05,2]
[418979948,1774707031708,-22939.03220827,0.0001,2]
[418979949,1774707031718,-348.36882581,0.0001,2]
[418979950,1774707031728,-781.91,0.00010161,2]
[418979951,1774707031738,-781.91,0.00010479,2]
[418979952,1774707031748,-781.91,0.00010796,2]
[418979953,1774707031758,-781.91,0.00011114,2]
[418979954,1774707031768,-781.91,0.00011431,2]
[418979955,1774707031777,-781.91,0.00011749,2]
[418979956,1774707031788,-781.91,0.00012066,2]
[418979957,1774707031799,-669.81511754,0.00012923,2]
[418979958,1774707031809,-166.31698668,0.00012927,2]
[418979959,1774707031821,-309.0,0.00012927,2]
[418979960,1774707031831,-187.84336109,0.00012928,2]
[418979961,1774707031841,-250.0,0.00012929,2]
[418979962,1774707031851,-166.31698667,0.00012931,2]
[418979963,1774707031860,-250.0,0.00012932,2]
[418979964,1774707031871,-240.4380741,0.00012934,2]
[418979965,1774707031881,-166.31698667,0.00012934,2]
[418979966,1774707031892,-1629.31910759,0.00012935,2]
[418979967,1774707031902,-500.0,0.00012935,2]
[418979968,1774707031912,-151.0,0.00013,2]
[418979969,1774707031924,-193.11452889,0.00013018,2]
[418979970,1774707031934,-193.11452889,0.00013018,2]
[418979971,1774707031944,-1200.0,0.00013025,2]
[418979972,1774707031954,-792.0,0.00013026,2]
[418979973,1774707031964,-300.0,0.00013026,2]
[418979974,1774707031974,-150.0,0.00013026,2]
[418979975,1774707031983,-500.0,0.00013027,2]
[418979976,1774707031993,-500.0,0.00013027,2]
[418979977,1774707032003,-166.52432965,0.00013027,2]
[418979978,1774707032012,-500.0,0.00013027,2]
[418979979,1774707032023,-499.46424467,0.00013027,2]
[418979980,1774707032032,-500.0,0.00013027,2]
[418979981,1774707032041,-500.0,0.00013027,2]
[418979982,1774707032051,-282.96265538,0.00013027,2]
[418979983,1774707032061,-500.0,0.00013027,2]
[418979984,1774707032070,-500.0,0.00013027,2]
[418979985,1774707032080,-500.0,0.00013027,2]
[418979986,1774707032090,-466.28821979,0.00013027,2]
[418979987,1774707032099,-500.0,0.00013027,2]
[418979988,1774707032109,-500.0,0.00013027,2]
[418979989,1774707032119,-568.10451999,0.00013027,2]
[418979990,1774707032129,-568.10451999,0.00013027,2]
[418979991,1774707032138,-568.10451999,0.00013027,2]
[418979992,1774707032148,-568.10451999,0.00013027,2]
[418979993,1774707032157,-568.10451999,0.00013027,2]
[418979994,1774707032167,-568.10451999,0.00013027,2]
[418979995,1774707032177,-568.10451999,0.00013027,2]
[418979996,1774707032187,-568.10451999,0.00013027,2]
[418979997,1774707032197,-568.10451999,0.00013027,2]
[418979998,1774707032206,-568.10451999,0.00013027,2]
[418979999,1774707032216,-568.10451999,0.00013027,2]